[Event "FIDE World Cup G12-A 2024"]
[Site "Batumi"]
[Date "2024.06.29"]
[Round "7.2"]
[White "Mirzaliyeva, Leyla"]
[Black "Zavivaeva, Kristina"]
[Result "0-1"]
[ECO "C71"]
[WhiteElo "1548"]
[BlackElo "1666"]
[Annotator "NA RC"]
[PlyCount "116"]
[EventDate "2024.06.23"]
[EventType "swiss"]
[EventCountry "GEO"]
[SourceTitle "playchess.com"]
[Source "ChessBase"]
[SourceQuality "1"]
[TimeControl "5400+30"]

1. e4 {[%emt 0:00:03]} e5 {[%emt 0:00:06]} 2. Nf3 {[%emt 0:00:07]} Nc6 {[%emt 0:00:04]} 3. Bb5 {[%emt 0:00:06]} a6 {[%emt 0:00:06]} 4. Ba4 {[%emt 0:00:05]} d6 {[%emt 0:00:04]} 5. d4 {[%emt 0:00:08]} Bd7 {[%emt 0:00:21]} 6. Nc3 {[%emt 0:00:52]} Nf6 {[%emt 0:01:10]} 7. Bg5 {[%emt 0:01:32]} b5 {[%emt 0:04:59]} 8. dxe5 {[%emt 0:06:19]} dxe5 {[%emt 0:01:13]} 9. Bb3 {[%emt 0:00:13]} Be7 {[%emt 0:05:25]} 10. O-O {[%emt 0:01:41]} O-O {[%emt 0:01:05]} 11. Bxf6 {[%emt 0:01:53]} Bxf6 {[%emt 0:00:41]} 12. Nd5 {[%emt 0:00:31]} Bg4 {[%emt 0:02:09]} 13. c3 {[%emt 0:01:23]} Na5 {[%emt 0:02:16]} 14. Qe2 {[%emt 0:04:40]} Nxb3 {[%emt 0:02:18]} 15. axb3 {[%emt 0:00:04]} c6 {[%emt 0:00:39]} 16. Nb4 {[%emt 0:04:17]} Qb6 {[%emt 0:01:51]} 17. Qe3 {[%emt 0:01:23]} Qb7 {[%emt 0:04:30]} 18. Nd3 {[%emt 0:02:49]} Qc7 {[%emt 0:01:43]} 19. Nc5 {[%emt 0:04:22]} a5 {[%emt 0:02:55]} 20. h3 {[%emt 0:03:33]} Bh5 {[%emt 0:01:39]} 21. g4 {[%emt 0:03:29]} Bg6 {[%emt 0:00:33]} 22. Rfd1 {[%emt 0:02:18]} Rfd8 {[%emt 0:02:07]} 23. h4 {[%emt 0:04:41]} Be7 {[%emt 0:09:09]} 24. b4 {[%emt 0:16:37]} Bxc5 {[%emt 0:03:22]} 25. bxc5 {[%emt 0:00:47]} f6 {[%emt 0:01:01]} 26. g5 {[%emt 0:00:23]} Qe7 {[%emt 0:02:23]} 27. Kh2 {[%emt 0:39:44]} fxg5 {[%emt 0:03:17]} 28. Nxg5 {[%emt 0:00:00]} h6 {[%emt 0:02:16]} 29. Nf3 {[%emt 0:00:00]} Bh5 {[%emt 0:45:38]} 30. Rxd8+ {[%emt 0:00:00]} Rxd8 {[%emt 0:00:00]} 31. Rxa5 {[%emt 0:00:00]} Rf8 {[%emt 0:00:00]} 32. Ng1 {[%emt 0:00:00]} Qxh4+ {[%emt 0:00:00]} 33. Kg2 {[%emt 0:00:00]} Rf4 {[%emt 0:00:00]} 34. Ra8+ {[%emt 0:00:00]} Kh7 {[%emt 0:00:00]} 35. f3 {[%emt 0:00:00]} Bxf3+ {[%emt 0:00:00]} 36. Nxf3 {[%emt 0:00:00]} Rg4+ {[%emt 0:00:00]} 37. Kf1 {[%emt 0:00:00]} Qh1+ {[%emt 0:00:00]} 38. Ng1 {[%emt 0:00:00]} Qg2+ {[%emt 0:00:00]} 39. Ke1 {[%emt 0:00:00]} Rxe4 {[%emt 0:00:00]} 40. Qxe4+ {[%emt 0:00:00]} Qxe4+ {[%emt 0:00:00]} 41. Ne2 {[%emt 0:00:00]} h5 {[%emt 0:00:00]} 42. Kf2 {[%emt 0:00:00]} h4 {[%emt 0:00:00]} 43. Rf8 {[%emt 0:00:00]} h3 {[%emt 0:00:00]} 44. Rf3 {[%emt 0:00:00]} Qh4+ {[%emt 0:00:00]} 45. Ng3 {[%emt 0:00:00]} e4 {[%emt 0:00:00]} 46. Rf5 {[%emt 0:00:00]} h2 {[%emt 0:00:00]} 47. Kg2 {[%emt 0:00:00]} Qxg3+ {[%emt 0:00:00]} 48. Kxg3 {[%emt 0:00:00]} h1=Q {[%emt 0:00:00]} 49. Kf2 {[%emt 0:00:00]} Qh2+ {[%emt 0:00:00]} 50. Ke3 {[%emt 0:00:00]} Qxb2 {[%emt 0:00:00]} 51. Kxe4 {[%emt 0:00:00]} Qxc3 {[%emt 0:00:00]} 52. Rh5+ {[%emt 0:00:00]} Kg8 {[%emt 0:00:00]} 53. Rf5 {[%emt 0:00:00]} b4 {[%emt 0:00:00]} 54. Kf4 {[%emt 0:00:00]} b3 {[%emt 0:00:00]} 55. Kg5 {[%emt 0:00:00]} Qg3+ {[%emt 0:00:00]} 56. Kh5 {[%emt 0:00:00]} g6+ {[%emt 0:00:00]} 57. Kh6 {[%emt 0:00:00]} gxf5 {[%emt 0:00:00]} 58. Kh5 {[%emt 0:00:00]} b2 {[%emt 0:00:00]} 0-1

[Event "FIDE World Cup G12-A 2024"]
[Site "Batumi"]
[Date "2024.06.29"]
[Round "7.3"]
[White "Kaminska, Zuzanna"]
[Black "Wu, Yiting"]
[Result "1-0"]
[ECO "B11"]
[WhiteElo "1848"]
[BlackElo "1758"]
[Annotator "NA RC"]
[PlyCount "77"]
[EventDate "2024.06.23"]
[EventType "swiss"]
[EventCountry "GEO"]
[SourceTitle "playchess.com"]
[Source "ChessBase"]
[SourceQuality "1"]
[TimeControl "5400+30"]

1. e4 {[%emt 0:00:03]} c6 {[%emt 0:00:08]} 2. Nc3 {[%emt 0:00:17]} d5 {[%emt 0:00:06]} 3. Nf3 {[%emt 0:00:08]} Bg4 {[%emt 0:00:07]} 4. h3 {[%emt 0:00:10]} Bxf3 {[%emt 0:00:06]} 5. Qxf3 {[%emt 0:00:08]} e6 {[%emt 0:00:05]} 6. d4 {[%emt 0:00:11]} Nf6 {[%emt 0:02:36]} 7. Bd3 {[%emt 0:00:18]} dxe4 {[%emt 0:01:31]} 8. Nxe4 {[%emt 0:00:11]} Nbd7 {[%emt 0:03:08]} 9. c3 {[%emt 0:04:00]} Nxe4 {[%emt 0:03:31]} 10. Bxe4 {[%emt 0:02:07]} Nf6 {[%emt 0:00:58]} 11. Bc2 {[%emt 0:00:17]} Be7 {[%emt 0:09:52]} 12. O-O {[%emt 0:00:49]} O-O {[%emt 0:02:24]} 13. Qd3 {[%emt 0:04:11]} h6 {[%emt 0:06:00]} 14. Bd2 {[%emt 0:10:14]} c5 {[%emt 0:06:53]} 15. Be3 {[%emt 0:06:48]} Rc8 {[%emt 0:03:12]} 16. Rae1 {[%emt 0:04:56]} c4 {[%emt 0:03:54]} 17. Qe2 {[%emt 0:01:28]} Qd5 {[%emt 0:09:23]} 18. Bf4 {[%emt 0:01:35]} Rfd8 {[%emt 0:09:26]} 19. Be5 {[%emt 0:03:48]} Nd7 {[%emt 0:02:24]} 20. Qg4 {[%emt 0:06:30]} Bf6 {[%emt 0:04:35]} 21. f4 {[%emt 0:04:54]} Bxe5 {[%emt 0:09:54]} 22. fxe5 {[%emt 0:01:23]} Nf8 {[%emt 0:02:26]} 23. h4 {[%emt 0:02:21]} Qd7 {[%emt 0:02:01]} 24. Re3 {[%emt 0:02:02]} g6 {[%emt 0:03:38]} 25. h5 {[%emt 0:01:55]} g5 {[%emt 0:00:12]} 26. Rf6 {[%emt 0:00:58]} Kg7 {[%emt 0:00:19]} 27. Rg3 {[%emt 0:00:37]} Qe7 {[%emt 0:02:38]} 28. Qe4 {[%emt 0:09:52]} Rc7 {[%emt 0:02:58]} 29. Qe3 {[%emt 0:05:14]} Nh7 {[%emt 0:01:08]} 30. Rgf3 {[%emt 0:05:05]} Qe8 {[%emt 0:01:33]} 31. Qe4 {[%emt 0:09:14]} Nf8 {[%emt 0:01:12]} 32. Rg3 {[%emt 0:01:38]} Qe7 {[%emt 0:00:59]} 33. b3 {[%emt 0:03:14]} b5 {[%emt 0:00:57]} 34. Kh2 {[%emt 0:00:37]} a6 {[%emt 0:01:40]} 35. b4 {[%emt 0:02:35]} Qe8 {[%emt 0:01:06]} 36. Qe3 {[%emt 0:01:01]} Nh7 {[%emt 0:01:04]} 37. Bxh7 {[%emt 0:00:10]} Kxh7 {[%emt 0:00:02]} 38. Rxh6+ {[%emt 0:00:10]} Kxh6 {[%emt 0:01:08]} 39. Qxg5+ {[%emt 0:00:09]} 1-0

[Event "FIDE World Cup G12-A 2024"]
[Site "Batumi"]
[Date "2024.06.29"]
[Round "7.4"]
[White "Mamakova, Aknur"]
[Black "Qiu, Laurie"]
[Result "0-1"]
[ECO "D35"]
[WhiteElo "1648"]
[BlackElo "2068"]
[Annotator "RC"]
[PlyCount "147"]
[EventDate "2024.06.23"]
[EventType "swiss"]
[EventCountry "GEO"]
[SourceTitle "playchess.com"]
[Source "ChessBase"]
[SourceQuality "1"]
[TimeControl "5400+30"]

1. d4 {[%emt 0:00:05]} d5 {[%emt 0:00:11]} 2. c4 {[%emt 0:00:09]} e6 {[%emt 0:00:06]} 3. Nc3 {[%emt 0:00:07]} Nf6 {[%emt 0:00:08]} 4. Nf3 {[%emt 0:00:30]} Bb4 {[%emt 0:00:29]} 5. cxd5 {[%emt 0:00:37]} exd5 {[%emt 0:00:15]} 6. Bg5 {[%emt 0:00:11]} c6 {[%emt 0:00:42]} 7. e3 {[%emt 0:01:04]} h6 {[%emt 0:00:46]} 8. Bh4 {[%emt 0:06:02]} Bf5 {[%emt 0:02:23]} 9. Bd3 {[%emt 0:02:28]} Bxd3 {[%emt 0:02:40]} 10. Qxd3 {[%emt 0:00:52]} Nbd7 {[%emt 0:00:47]} 11. O-O {[%emt 0:01:13]} O-O {[%emt 0:01:13]} 12. Rac1 {[%emt 0:01:29]} Re8 {[%emt 0:02:16]} 13. Rfd1 {[%emt 0:03:13]} a5 {[%emt 0:01:56]} 14. a3 {[%emt 0:07:20]} Bxc3 {[%emt 0:01:35]} 15. bxc3 {[%emt 0:01:09]} b5 {[%emt 0:04:16]} 16. Rb1 {[%emt 0:05:10]} a4 {[%emt 0:02:50]} 17. Rb4 {[%emt 0:06:37]} Qe7 {[%emt 0:03:15]} 18. Qd2 {[%emt 0:10:15]} Qe6 {[%emt 0:11:06]} 19. Bxf6 {[%emt 0:03:07]} Nxf6 {[%emt 0:05:36]} 20. Ne5 {[%emt 0:06:06]} Ne4 {[%emt 0:02:07]} 21. Qe1 {[%emt 0:05:26]} Rac8 {[%emt 0:08:39]} 22. Nd3 {[%emt 0:05:05]} Qf5 {[%emt 0:04:23]} 23. Rbb1 {[%emt 0:05:23]} h5 {[%emt 0:07:36]} 24. Rdc1 {[%emt 0:08:04]} h4 {[%emt 0:03:38]} 25. h3 {[%emt 0:01:44]} Re6 {[%emt 0:06:52]} 26. Qe2 {[%emt 0:04:40]} Rg6 {[%emt 0:02:39]} 27. Kh2 {[%emt 0:04:26]} Re8 {[%emt 0:03:52]} 28. Rc2 {[%emt 0:02:34]} Qg5 {[%emt 0:02:15]} 29. Rg1 {[%emt 0:04:36]} Rf6 {[%emt 0:08:00]} 30. Qg4 {[%emt 0:04:02]} Qxg4 {[%emt 0:03:57]} 31. hxg4 {[%emt 0:00:06]} Rh6 {[%emt 0:01:47]} 32. Ne5 {[%emt 0:01:26]} f5 {[%emt 0:03:47]} 33. gxf5 {[%emt 0:01:06]} Rf8 {[%emt 0:00:19]} 34. f3 {[%emt 0:01:08]} Ng3 {[%emt 0:00:36]} 35. Re1 {[%emt 0:00:00]} Rxf5 {[%emt 0:01:18]} 36. Ng4 {[%emt 0:00:14]} Re6 {[%emt 0:00:19]} 37. Ne5 {[%emt 0:00:19]} g5 {[%emt 0:00:26]} 38. Rb2 {[%emt 0:00:40]} Rf8 {[%emt 0:00:51]} 39. Rbb1 {[%emt 0:00:43]} Kg7 {[%emt 0:00:34]} 40. Kh3 {[%emt 0:00:20]} Kh6 {[%emt 0:01:01]} 41. Kg4 {[%emt 0:00:31]} Nf5 {[%emt 0:00:46]} 42. Kh3 {[%emt 0:00:24]} Kh5 {[%emt 0:00:19]} 43. Rbc1 {[%emt 0:00:28]} Ne7 {[%emt 0:01:40]} 44. Rb1 {[%emt 0:00:44]} Ng6 {[%emt 0:00:58]} 45. Nxg6 {[%emt 0:00:29]} Kxg6 {[%emt 0:00:02]} 46. Rb2 {[%emt 0:00:12]} Rfe8 {[%emt 0:00:15]} 47. Rbe2 {[%emt 0:00:07]} Kf5 {[%emt 0:00:06]} 48. Kh2 {[%emt 0:00:46]} g4 {[%emt 0:00:16]} 49. Kg1 {[%emt 0:00:42]} h3 {[%emt 0:01:13]} 50. fxg4+ {[%emt 0:00:30]} Kxg4 {[%emt 0:00:02]} 51. gxh3+ {[%emt 0:00:08]} Kxh3 {[%emt 0:00:08]} 52. Rh2+ {[%emt 0:00:18]} Kg3 {[%emt 0:00:06]} 53. Rg2+ {[%emt 0:00:17]} Kf3 {[%emt 0:00:05]} 54. Rf2+ {[%emt 0:00:06]} Ke4 {[%emt 0:00:06]} 55. Rd2 {[%emt 0:00:05]} Rf6 {[%emt 0:03:08]} 56. Rf2 {[%emt 0:02:20]} Rxf2 {[%emt 0:00:29]} 57. Kxf2 {[%emt 0:00:03]} Kd3 {[%emt 0:00:11]} 58. Rd1+ {[%emt 0:00:15]} Kc2 {[%emt 0:00:06]} 59. Re1 {[%emt 0:00:23]} Kb3 {[%emt 0:00:26]} 60. Ke2 {[%emt 0:00:37]} Kc2 {[%emt 0:01:14]} 61. Rh1 {[%emt 0:00:27]} Re6 {[%emt 0:00:05]} 62. Rg1 {[%emt 0:00:56]} Kxc3 {[%emt 0:00:20]} 63. Rc1+ {[%emt 0:00:52]} Kb2 {[%emt 0:00:18]} 64. Kd2 {[%emt 0:00:08]} Kxa3 {[%emt 0:00:11]} 65. e4 {[%emt 0:00:50]} Rxe4 {[%emt 0:00:58]} 66. Rxc6 {[%emt 0:00:29]} Rxd4+ {[%emt 0:00:08]} 67. Ke3 {[%emt 0:00:08]} Rc4 {[%emt 0:00:05]} 68. Rd6 {[%emt 0:00:15]} d4+ {[%emt 0:00:40]} 69. Kd3 {[%emt 0:00:05]} Kb3 {[%emt 0:00:36]} 70. Rb6 {[%emt 0:00:08]} b4 {[%emt 0:00:15]} 71. Rh6 {[%emt 0:00:14]} a3 {[%emt 0:00:21]} 72. Rh1 {[%emt 0:00:05]} a2 {[%emt 0:00:08]} 73. Rg1 {[%emt 0:00:11]} Rc3+ {[%emt 0:00:24]} 74. Kxd4 {[%emt 0:03:31]} 0-1

[Event "FIDE World Cup G12-A 2024"]
[Site "Batumi"]
[Date "2024.06.29"]
[Round "7.5"]
[White "Kutateladze, Anastasia"]
[Black "Lu, Xiahan (Luna)"]
[Result "0-1"]
[ECO "C11"]
[WhiteElo "1598"]
[BlackElo "1859"]
[Annotator "NA RC"]
[PlyCount "142"]
[EventDate "2024.06.23"]
[EventType "swiss"]
[EventCountry "GEO"]
[SourceTitle "playchess.com"]
[Source "ChessBase"]
[SourceQuality "1"]
[TimeControl "5400+30"]

1. e4 {[%emt 0:00:02]} e6 {[%emt 0:00:10]} 2. d4 {[%emt 1:31:28]} d5 {[%emt 0:00:08]} 3. Nc3 {[%emt 0:00:00]} Nf6 {[%emt 0:00:19]} 4. e5 {[%emt 0:00:00]} Nfd7 {[%emt 0:00:15]} 5. f4 {[%emt 0:00:00]} c5 {[%emt 0:00:18]} 6. Nf3 {[%emt 0:00:00]} Nc6 {[%emt 0:00:16]} 7. Be3 {[%emt 0:00:00]} Be7 {[%emt 0:00:46]} 8. Qd2 {[%emt 0:00:00]} O-O {[%emt 0:00:37]} 9. O-O-O {[%emt 0:00:00]} c4 {[%emt 0:00:51]} 10. f5 {[%emt 0:00:00]} b5 {[%emt 0:01:56]} 11. f6 {[%emt 0:00:00]} gxf6 {[%emt 0:01:47]} 12. Bh6 {[%emt 0:00:00]} fxe5 {[%emt 0:00:52]} 13. Qe1 {[%emt 0:00:00]} Kh8 {[%emt 0:04:21]} 14. Bxf8 {[%emt 0:00:00]} Bxf8 {[%emt 0:03:22]} 15. dxe5 {[%emt 0:00:00]} b4 {[%emt 0:05:14]} 16. Nxd5 {[%emt 0:00:00]} exd5 {[%emt 0:05:10]} 17. Rxd5 {[%emt 0:00:00]} c3 {[%emt 0:06:01]} 18. Bd3 {[%emt 0:00:00]} Bh6+ {[%emt 0:11:28]} 19. Kb1 {[%emt 0:00:00]} Qe7 {[%emt 0:01:20]} 20. Qe4 {[%emt 0:00:00]} f5 {[%emt 0:09:36]} 21. Qe2 {[%emt 0:00:00]} Bg7 {[%emt 0:11:06]} 22. Bb5 {[%emt 0:00:00]} Bb7 {[%emt 0:35:37]} 23. Rhd1 {[%emt 0:00:00]} Nb6 {[%emt 0:00:00]} 24. Bxc6 {[%emt 0:00:00]} Bxc6 {[%emt 0:00:00]} 25. Rd6 {[%emt 0:00:00]} Rc8 {[%emt 0:00:00]} 26. Qd3 {[%emt 0:00:00]} Be4 {[%emt 0:00:00]} 27. Rd8+ {[%emt 0:00:00]} Bf8 {[%emt 0:02:30]} 28. Qd6 {[%emt 0:00:43]} Rxd8 {[%emt 0:00:00]} 29. Qxd8 {[%emt 0:00:06]} Qg7 {[%emt 0:00:00]} 30. Ng5 {[%emt 0:02:46]} Kg8 {[%emt 0:00:00]} 31. e6 {[%emt 0:06:12]} cxb2 {[%emt 0:00:00]} 32. Nxe4 {[%emt 0:02:03]} fxe4 {[%emt 0:00:00]} 33. Qd4 {[%emt 0:00:22]} Qxd4 {[%emt 0:00:00]} 34. Rxd4 {[%emt 0:00:05]} e3 {[%emt 0:00:00]} 35. Re4 {[%emt 0:00:46]} Be7 {[%emt 0:00:00]} 36. Kxb2 {[%emt 0:00:52]} Nd5 {[%emt 0:00:00]} 37. Kb3 {[%emt 0:00:33]} Kg7 {[%emt 0:00:00]} 38. Kc4 {[%emt 0:00:28]} Nc3 {[%emt 0:00:00]} 39. Rxe3 {[%emt 0:00:05]} Nxa2 {[%emt 0:00:00]} 40. Kd5 {[%emt 0:00:55]} Nc3+ {[%emt 0:00:12]} 41. Kc6 {[%emt 0:00:19]} Kf6 {[%emt 0:00:53]} 42. Kd7 {[%emt 0:00:24]} Nd5 {[%emt 0:00:07]} 43. Rf3+ {[%emt 0:00:20]} Ke5 {[%emt 0:00:46]} 44. Rh3 {[%emt 0:00:56]} Kf6 {[%emt 0:01:36]} 45. Rh6+ {[%emt 0:00:58]} Kg7 {[%emt 0:00:17]} 46. Rh3 {[%emt 0:00:07]} Kf6 {[%emt 0:02:21]} 47. Rd3 {[%emt 0:00:21]} Nb6+ {[%emt 0:00:58]} 48. Ke8 {[%emt 0:00:14]} Nc4 {[%emt 0:02:00]} 49. Rd1 {[%emt 0:01:09]} Kxe6 {[%emt 0:00:25]} 50. Re1+ {[%emt 0:00:14]} Ne5 {[%emt 0:00:04]} 51. g4 {[%emt 0:01:27]} Bh4 {[%emt 0:00:42]} 52. Ra1 {[%emt 0:00:32]} Nc6 {[%emt 0:00:52]} 53. Ra6 {[%emt 0:00:30]} Kd6 {[%emt 0:00:11]} 54. Kf7 {[%emt 0:00:08]} h6 {[%emt 0:00:14]} 55. Kg6 {[%emt 0:00:13]} Bg5 {[%emt 0:00:04]} 56. h4 {[%emt 0:00:42]} Be3 {[%emt 0:01:31]} 57. g5 {[%emt 0:00:07]} hxg5 {[%emt 0:00:07]} 58. hxg5 {[%emt 0:00:02]} Bd4 {[%emt 0:00:37]} 59. Kh7 {[%emt 0:00:21]} Kc5 {[%emt 0:00:30]} 60. g6 {[%emt 0:00:19]} Kb5 {[%emt 0:00:11]} 61. Ra2 {[%emt 0:00:05]} a5 {[%emt 0:00:24]} 62. g7 {[%emt 0:00:07]} Ne7 {[%emt 0:00:42]} 63. g8=Q {[%emt 0:00:20]} Nxg8 {[%emt 0:00:03]} 64. Kxg8 {[%emt 0:00:05]} a4 {[%emt 0:00:02]} 65. Kf7 {[%emt 0:00:22]} a3 {[%emt 0:00:03]} 66. Ke6 {[%emt 0:00:09]} Kc4 {[%emt 0:00:19]} 67. Kf5 {[%emt 0:00:39]} Bb2 {[%emt 0:00:07]} 68. Ke4 {[%emt 0:00:04]} Kc3 {[%emt 0:00:13]} 69. Ke3 {[%emt 0:00:05]} Kxc2 {[%emt 0:00:06]} 70. Ke2 {[%emt 0:00:02]} b3 {[%emt 0:00:02]} 71. Rxa3 {[%emt 0:00:04]} Bxa3 {[%emt 0:00:04]} 0-1

[Event "FIDE World Cup G12-A 2024"]
[Site "Batumi"]
[Date "2024.06.29"]
[Round "7.6"]
[White "Sevastsyanchuk, Anastasiya"]
[Black "Xikmatkhonova, Mokhinur"]
[Result "0-1"]
[ECO "B42"]
[WhiteElo "1531"]
[BlackElo "1706"]
[Annotator "NA RC"]
[PlyCount "120"]
[EventDate "2024.06.23"]
[EventType "swiss"]
[EventCountry "GEO"]
[SourceTitle "playchess.com"]
[Source "ChessBase"]
[SourceQuality "1"]
[TimeControl "5400+30"]

1. e4 {[%emt 0:00:01]} c5 {[%emt 0:00:08]} 2. Nf3 {[%emt 0:00:04]} e6 {[%emt 0:00:04]} 3. d4 {[%emt 0:00:08]} cxd4 {[%emt 0:00:06]} 4. Nxd4 {[%emt 0:00:02]} a6 {[%emt 0:00:01]} 5. Bd3 {[%emt 0:00:16]} Nf6 {[%emt 0:00:07]} 6. O-O {[%emt 0:03:43]} d6 {[%emt 0:00:11]} 7. Bg5 {[%emt 0:23:54]} Be7 {[%emt 0:01:55]} 8. b4 {[%emt 0:08:30]} d5 {[%emt 0:12:29]} 9. e5 {[%emt 0:00:23]} Nfd7 {[%emt 0:01:26]} 10. Nxe6 {[%emt 0:15:12]} fxe6 {[%emt 0:01:34]} 11. Qh5+ {[%emt 0:00:08]} Kf8 {[%emt 0:01:39]} 12. f4 {[%emt 0:00:22]} Kg8 {[%emt 0:05:38]} 13. c4 {[%emt 0:08:25]} Bxg5 {[%emt 0:20:37]} 14. fxg5 {[%emt 0:00:15]} Nxe5 {[%emt 0:00:29]} 15. g6 {[%emt 0:02:08]} Nxg6 {[%emt 0:04:38]} 16. Nc3 {[%emt 0:06:35]} dxc4 {[%emt 0:22:31]} 17. Bxg6 {[%emt 0:01:47]} hxg6 {[%emt 0:00:19]} 18. Qxg6 {[%emt 0:02:22]} Rh6 {[%emt 0:03:12]} 19. Qf7+ {[%emt 0:01:30]} Kh7 {[%emt 0:00:29]} 20. Rad1 {[%emt 0:00:34]} Qh4 {[%emt 0:02:44]} 21. h3 {[%emt 0:00:48]} Nd7 {[%emt 0:01:50]} 22. Rf4 {[%emt 0:00:59]} Ne5 {[%emt 0:05:59]} 23. Qf8 {[%emt 0:04:08]} Ng6 {[%emt 0:01:19]} 24. Rxh4 {[%emt 0:02:48]} Nxf8 {[%emt 0:00:06]} 25. Rxc4 {[%emt 0:00:30]} Bd7 {[%emt 0:00:16]} 26. Ne4 {[%emt 0:01:49]} Rg6 {[%emt 0:02:56]} 27. h4 {[%emt 0:02:53]} Bc6 {[%emt 0:05:23]} 28. Ng5+ {[%emt 0:00:26]} Kg8 {[%emt 0:00:42]} 29. Rcd4 {[%emt 0:06:22]} Bd5 {[%emt 0:00:42]} 30. a4 {[%emt 0:00:22]} Nh7 {[%emt 0:00:24]} 31. Nxh7 {[%emt 0:01:39]} Kxh7 {[%emt 0:00:02]} 32. R1d2 {[%emt 0:00:22]} Rc8 {[%emt 0:00:42]} 33. g4 {[%emt 0:01:20]} Rc1+ {[%emt 0:00:31]} 34. Kh2 {[%emt 0:00:15]} Rf6 {[%emt 0:00:33]} 35. h5 {[%emt 0:00:37]} Rh1+ {[%emt 0:00:52]} 36. Kg3 {[%emt 0:00:03]} Rf3+ {[%emt 0:01:00]} 37. Kg2 {[%emt 0:00:08]} Rff1+ {[%emt 0:03:25]} 38. Kg3 {[%emt 0:00:15]} Rfg1+ {[%emt 0:00:53]} 39. Kf4 {[%emt 0:00:45]} Re1 {[%emt 0:00:35]} 40. Kg3 {[%emt 0:00:28]} Re3+ {[%emt 0:00:36]} 41. Kf2 {[%emt 0:00:07]} Rf3+ {[%emt 0:00:12]} 42. Kg2 {[%emt 0:00:04]} Rfh3+ {[%emt 0:00:07]} 43. Kf2 {[%emt 0:00:54]} R1h2+ {[%emt 0:00:08]} 44. Kg1 {[%emt 0:00:12]} Rxd2 {[%emt 0:00:04]} 45. Rxd2 {[%emt 0:00:05]} Rg3+ {[%emt 0:00:04]} 46. Kh2 {[%emt 0:00:17]} Rxg4 {[%emt 0:00:06]} 47. Rb2 {[%emt 0:00:04]} Rg2+ {[%emt 0:00:53]} 48. Rxg2 {[%emt 0:00:11]} Bxg2 {[%emt 0:00:01]} 49. Kxg2 {[%emt 0:00:10]} Kh6 {[%emt 0:00:03]} 50. Kg3 {[%emt 0:00:17]} Kxh5 {[%emt 0:00:03]} 51. Kf4 {[%emt 0:00:06]} g5+ {[%emt 0:00:08]} 52. Ke5 {[%emt 0:00:03]} g4 {[%emt 0:00:06]} 53. Kd6 {[%emt 0:00:02]} g3 {[%emt 0:00:18]} 54. Kc7 {[%emt 0:00:04]} b5 {[%emt 0:00:27]} 55. a5 {[%emt 0:00:06]} g2 {[%emt 0:00:06]} 56. Kb6 {[%emt 0:00:04]} g1=Q+ {[%emt 0:00:14]} 57. Kxa6 {[%emt 0:00:07]} Qf1 {[%emt 0:00:32]} 58. Kb6 {[%emt 0:00:08]} Qc4 {[%emt 0:00:11]} 59. a6 {[%emt 0:00:06]} Qxb4 {[%emt 0:00:06]} 60. a7 {[%emt 0:14:07]} Qe4 {[%emt 0:00:24]} 0-1

[Event "FIDE World Cup G12-A 2024"]
[Site "Batumi"]
[Date "2024.06.29"]
[Round "7.7"]
[White "Gulishyan, Eseniya"]
[Black "Chichinadze, Anastasia"]
[Result "0-1"]
[ECO "A47"]
[WhiteElo "1434"]
[BlackElo "1724"]
[Annotator "NA RC"]
[PlyCount "120"]
[EventDate "2024.06.23"]
[EventType "swiss"]
[EventCountry "GEO"]
[SourceTitle "playchess.com"]
[Source "ChessBase"]
[SourceQuality "1"]
[TimeControl "5400+30"]

1. Nf3 {[%emt 0:00:33]} Nf6 {[%emt 0:00:06]} 2. d4 {[%emt 0:00:08]} e6 {[%emt 0:00:03]} 3. e3 {[%emt 0:00:12]} b6 {[%emt 0:06:32]} 4. b3 {[%emt 0:00:42]} Bb7 {[%emt 0:01:18]} 5. Bb2 {[%emt 0:00:20]} d6 {[%emt 0:01:45]} 6. Bd3 {[%emt 0:00:27]} Nbd7 {[%emt 0:05:58]} 7. Nbd2 {[%emt 0:00:35]} g6 {[%emt 0:03:24]} 8. O-O {[%emt 0:04:06]} Bg7 {[%emt 0:00:12]} 9. e4 {[%emt 0:06:52]} O-O {[%emt 0:06:34]} 10. e5 {[%emt 0:00:41]} dxe5 {[%emt 0:00:35]} 11. Nxe5 {[%emt 0:01:03]} Nxe5 {[%emt 0:11:54]} 12. dxe5 {[%emt 0:00:27]} Nd5 {[%emt 0:03:46]} 13. f4 {[%emt 0:05:49]} Ne3 {[%emt 0:00:24]} 14. Qe2 {[%emt 0:00:41]} Nxf1 {[%emt 0:08:50]} 15. Rxf1 {[%emt 0:00:09]} Qe7 {[%emt 0:04:46]} 16. Ne4 {[%emt 0:03:01]} Bxe4 {[%emt 0:00:18]} 17. Bxe4 {[%emt 0:00:25]} Rad8 {[%emt 0:03:12]} 18. g3 {[%emt 0:04:26]} Rd7 {[%emt 0:02:55]} 19. h4 {[%emt 0:00:42]} Rfd8 {[%emt 0:08:33]} 20. Bd3 {[%emt 0:02:28]} h5 {[%emt 0:02:01]} 21. Rf2 {[%emt 0:04:05]} Rd5 {[%emt 0:08:47]} 22. Rh2 {[%emt 0:03:32]} Qd7 {[%emt 0:11:35]} 23. g4 {[%emt 0:01:18]} Rxd3 {[%emt 0:04:46]} 24. Qxd3 {[%emt 0:01:41]} Qxd3 {[%emt 0:00:08]} 25. cxd3 {[%emt 0:00:04]} Rxd3 {[%emt 0:00:33]} 26. g5 {[%emt 0:01:25]} Bf8 {[%emt 0:00:53]} 27. Kf1 {[%emt 0:03:35]} Bc5 {[%emt 0:01:54]} 28. Ke2 {[%emt 0:02:47]} Re3+ {[%emt 0:00:27]} 29. Kd1 {[%emt 0:00:55]} Kf8 {[%emt 0:01:03]} 30. Bc1 {[%emt 0:02:10]} Rg3 {[%emt 0:00:52]} 31. Ke2 {[%emt 0:01:16]} Ke7 {[%emt 0:00:30]} 32. Bd2 {[%emt 0:01:04]} a5 {[%emt 0:00:31]} 33. Rh1 {[%emt 0:02:26]} Rg2+ {[%emt 0:01:01]} 34. Kd3 {[%emt 0:00:20]} Kd7 {[%emt 0:00:09]} 35. Rc1 {[%emt 0:01:16]} Rh2 {[%emt 0:00:35]} 36. Bxa5 {[%emt 0:01:09]} Ba3 {[%emt 0:00:45]} 37. Rd1 {[%emt 0:02:29]} bxa5 {[%emt 0:00:06]} 38. Ke4+ {[%emt 0:00:05]} Ke7 {[%emt 0:00:25]} 39. Rd4 {[%emt 0:00:26]} Rxh4 {[%emt 0:00:34]} 40. Rc4 {[%emt 0:00:29]} c5 {[%emt 0:00:21]} 41. Ra4 {[%emt 0:00:20]} Bb4 {[%emt 0:00:06]} 42. a3 {[%emt 0:00:02]} Bd2 {[%emt 0:00:09]} 43. Kf3 {[%emt 0:00:37]} Rxf4+ {[%emt 0:00:19]} 44. Rxf4 {[%emt 0:00:10]} Bxf4 {[%emt 0:00:03]} 45. Kxf4 {[%emt 0:00:06]} Kd7 {[%emt 0:00:12]} 46. a4 {[%emt 0:00:14]} Kc6 {[%emt 0:00:05]} 47. Ke4 {[%emt 0:00:16]} h4 {[%emt 0:00:12]} 48. Kf3 {[%emt 0:00:08]} Kd5 {[%emt 0:00:07]} 49. Kg4 {[%emt 0:00:07]} Kxe5 {[%emt 0:00:22]} 50. Kxh4 {[%emt 0:00:06]} Kf4 {[%emt 0:00:10]} 51. Kh3 {[%emt 0:00:10]} Kxg5 {[%emt 0:00:15]} 52. Kg3 {[%emt 0:00:04]} f5 {[%emt 0:00:09]} 53. Kf3 {[%emt 0:00:03]} e5 {[%emt 0:00:03]} 54. Ke3 {[%emt 0:00:07]} f4+ {[%emt 0:00:06]} 55. Kf3 {[%emt 0:00:06]} Kf5 {[%emt 0:00:04]} 56. Ke2 {[%emt 0:00:05]} Ke4 {[%emt 0:00:07]} 57. Kd2 {[%emt 0:00:02]} f3 {[%emt 0:00:07]} 58. Kc3 {[%emt 0:00:03]} f2 {[%emt 0:00:04]} 59. b4 {[%emt 0:00:06]} cxb4+ {[%emt 0:00:12]} 60. Kc4 {[%emt 0:00:03]} f1=Q+ {[%emt 0:08:37]} 0-1